fUSD/lending_fUSD_20240114
["ID","MTS","AMOUNT","RATE_DAILY","PERIOD"]
[311549784,1705218641791,-634.16,0.00030136,2]
[311549785,1705218641800,-634.16,0.00030136,2]
[311549786,1705218641811,-634.16,0.00030136,2]
[311549787,1705218641820,-634.16,0.00030136,2]
[311549788,1705218641829,-634.16,0.00030136,2]
[311549789,1705218641838,-634.16,0.00030136,2]
[311549790,1705218641846,-634.16,0.00030136,2]
[311549791,1705218641855,-634.23400772,0.00030136,2]
[311549792,1705218641864,-153.84,0.00030137,2]
[311549793,1705218641873,-155.0,0.00030137,2]
[311549794,1705218641882,-250.0,0.0003014,2]
[311549795,1705218641891,-635.27,0.00030212,2]
[311549796,1705218641900,-1756.50552638,0.00030346,2]
[311549797,1705218641909,-491.78,0.00030381,2]
[311549798,1705218641918,-202.749623,0.00030453,2]
[311549799,1705218641927,-625.773279,0.00030453,2]
[311549800,1705218641937,-646.549703,0.00030453,2]
[311549801,1705218641946,-3035.0,0.000305,7]
[311549802,1705218641954,-1234.0,0.000307,2]
[311549803,1705218641963,-1252.0,0.000307,2]
[311549804,1705218641972,-10159.064,0.000307,2]
[311549805,1705218641981,-500.0,0.00030759,2]
[311549806,1705218641989,-202.749623,0.00030819,2]
[311549807,1705218641999,-625.773279,0.00030819,2]
[311549808,1705218642008,-646.549703,0.00030819,2]
[311549809,1705218642017,-150.34,0.0003083,2]
[311549810,1705218642026,-254.34253852,0.000309,2]
[311549811,1705218642035,-254.34253846,0.000309,2]
[311549812,1705218642044,-254.34253846,0.000309,2]
[311549813,1705218642053,-254.34253846,0.000309,2]
[311549814,1705218642063,-254.34253846,0.000309,2]
[311549815,1705218642072,-254.34253846,0.000309,2]
[311549816,1705218642082,-254.34253846,0.000309,2]
[311549817,1705218642091,-254.34253846,0.000309,2]
[311549818,1705218642100,-254.34253846,0.000309,2]
[311549819,1705218642109,-254.34253846,0.000309,2]
[311549820,1705218642119,-254.34253846,0.000309,2]
[311549821,1705218642128,-254.34253846,0.000309,2]
[311549822,1705218642137,-254.34253846,0.000309,2]
[311549823,1705218642147,-254.34253846,0.000309,2]
[311549824,1705218642156,-254.34253846,0.000309,2]
[311549825,1705218642165,-254.34253846,0.000309,2]
[311549826,1705218642175,-254.34253846,0.000309,2]
[311549827,1705218642184,-14000.20999271,0.00031,2]
[311549828,1705218642194,-7008.22859832,0.00031,5]
[311549829,1705218642202,-2503.51714977,0.00031,12]
[311549830,1705218642212,-500.0,0.00031,3]
[311549831,1705218642221,-153.84,0.0003105,2]
[311549832,1705218642231,-313.04,0.0003109,2]
[311549833,1705218642241,-254.34253846,0.00031245,2]
[311549835,1705218642250,-151.13648755,0.0003131,2]
[311549836,1705218642259,-1756.50552638,0.0003141,3]
[311549837,1705218642269,-151.0,0.00031431,2]
[311549838,1705218642279,-500.0,0.000315,2]
[311549840,1705218642290,-433.78441677,0.000315,2]
[311549842,1705218642299,-1018.58,0.00031507,2]
[311549844,1705218642310,-155.0,0.00031507,2]
[311549845,1705218642319,-156.2,0.00031623,2]
[311549847,1705218642328,-167.71,0.00031644,2]
[311549848,1705218642338,-254.34253846,0.00031736,2]
[311549849,1705218642347,-161.608457,0.000318,7]
[311549850,1705218642356,-161.608457,0.000318,7]
[311549851,1705218642365,-214.007033,0.000318,7]
[311549852,1705218642374,-214.007033,0.000318,7]
[311549853,1705218642383,-151.0,0.000318,7]
[311549854,1705218642393,-237.156213,0.000318,7]
[311549855,1705218642402,-151.0,0.000318,7]
[311549856,1705218642411,-250.456849,0.000318,7]
[311549857,1705218642420,-281722.87076,0.000318,3]
[311549858,1705218642429,-151.0,0.000318,7]
[311549859,1705218642438,-153.84,0.00031963,2]
[311549860,1705218642448,-150.0,0.00031971,2]
[311549861,1705218642457,-3295.6729067,0.00031978,2]
[311549862,1705218642466,-1215.3641213,0.00031978,2]
[311549863,1705218642475,-29087.6561916,0.00031978,2]
[311549864,1705218642484,-13061.65345673,0.00032,4]
[311549865,1705218642494,-297.64389928,0.00032,4]
[311549866,1705218642503,-155.0,0.00032,2]
[311549867,1705218642512,-192.925313,0.00032,33]
[311549868,1705218642521,-150.1,0.00032,2]
[311549869,1705218642531,-500.0,0.00032,3]
[311549870,1705218642540,-150.34,0.00032076,2]
[311549871,1705218642549,-313.04,0.0003218,2]
[311549872,1705218642559,-254.34253846,0.00032227,2]
[311549873,1705218642569,-20000.0,0.00032463,7]
[311549874,1705218642580,-1756.50552638,0.00032474,4]
[311549875,1705218642589,-151.0,0.00032636,120]
[311549876,1705218642598,-157.81,0.000327,2]
[311549877,1705218642607,-157.81,0.000327,2]
[311549878,1705218642616,-157.81,0.000327,2]
[311549879,1705218642626,-157.81,0.000327,2]
[311549880,1705218642635,-157.81,0.000327,2]
[311549881,1705218642644,-157.81,0.000327,2]
[311549882,1705218642654,-254.34253846,0.00032718,2]
[311549883,1705218642662,-299.389427,0.000328,6]
[311549884,1705218642672,-768.141413,0.000328,2]
[311549885,1705218642681,-153.84,0.00032877,2]
[311549886,1705218642690,-150.1,0.00032877,2]
[311549887,1705218642699,-500.0,0.00032877,2]
[311549888,1705218642709,-2005.38,0.00032877,2]
[311549889,1705218642718,-495.69,0.00032877,2]
[311549890,1705218642727,-14014.32,0.00032877,2]
[311549891,1705218642736,-150.0,0.00032877,2]
[311549892,1705218642745,-1066.09,0.00032877,15]
[311549893,1705218642754,-155.0,0.00032877,2]
[311549894,1705218642764,-1590.331197,0.00032877,2]
[311549895,1705218642773,-650.0,0.000329,2]
[311549896,1705218642783,-200.0,0.000329,2]
[311549897,1705218642793,-2000.0,0.000329,2]
[311549898,1705218642805,-500.0,0.000329,2]
[311549899,1705218642815,-1101.0,0.000329,2]
[311549902,1705218642825,-500.0,0.000329,2]
[311549904,1705218642835,-200.0,0.000329,2]
[311549906,1705218642844,-5500.0,0.000329,2]
[311549908,1705218642853,-796.0,0.000329,2]
[311549910,1705218642862,-155.0,0.00032933,4]
[311549912,1705218642871,-635.27,0.00032958,2]
[311549914,1705218642881,-2700.8622836,0.00032977,2]
[311549916,1705218642892,-500.0,0.00032998,2]
[311549918,1705218642902,-385.66863668,0.00032999,2]
[311549920,1705218642910,-623.98624362,0.00032999,2]
[311549922,1705218642920,-350.0,0.00032999,2]
[311549923,1705218642929,-599.04706233,0.00032999,2]
[311549924,1705218642938,-498.93691111,0.00032999,2]
[311549925,1705218642947,-500.0,0.00032999,2]
[311549926,1705218642956,-599.04706233,0.00032999,2]
[311549927,1705218642965,-500.0,0.00032999,2]
[311549928,1705218642974,-599.04706233,0.00032999,2]
[311549929,1705218642983,-500.0,0.00032999,2]
[311549930,1705218642992,-599.04706233,0.00032999,2]
[311549931,1705218643001,-599.04706233,0.00032999,2]
[311549932,1705218643010,-599.04706233,0.00032999,2]
[311549933,1705218643019,-599.04706233,0.00032999,2]
[311549934,1705218643028,-599.04706233,0.00032999,2]
[311549935,1705218643037,-599.04706233,0.00032999,2]
[311549936,1705218643046,-500.0,0.00032999,2]
[311549937,1705218643055,-599.04706233,0.00032999,2]
[311549938,1705218643065,-500.0,0.00032999,2]
[311549939,1705218643075,-599.04706233,0.00032999,2]
[311549940,1705218643084,-599.04706233,0.00032999,2]
[311549941,1705218643093,-599.04706233,0.00032999,2]
[311549942,1705218643102,-599.04706233,0.00032999,2]
[311549943,1705218643111,-599.04706233,0.00032999,2]
[311549944,1705218643120,-599.04706233,0.00032999,2]
[311549945,1705218643129,-500.0,0.00032999,2]
[311549946,1705218643138,-599.04706233,0.00032999,2]
[311549947,1705218643147,-596.68113438,0.00032999,2]
[311549948,1705218643157,-599.04706233,0.00032999,2]
[311549949,1705218643166,-599.04706233,0.00032999,2]
[311549950,1705218643175,-599.04706233,0.00032999,2]
[311549951,1705218643184,-500.0,0.00032999,2]
[311549952,1705218643193,-599.04706233,0.00032999,2]
[311549953,1705218643203,-500.0,0.00032999,2]
[311549954,1705218643212,-599.04706233,0.00032999,2]
[311549955,1705218643222,-500.0,0.00032999,2]
[311549956,1705218643231,-599.04706233,0.00032999,2]
[311549957,1705218643241,-599.04706233,0.00032999,2]
[311549958,1705218643250,-599.04706233,0.00032999,2]
[311549959,1705218643260,-500.0,0.00032999,2]
[311549960,1705218643415,-599.04706233,0.00032999,2]
[311549961,1705218643448,-599.04706233,0.00032999,2]
[311549962,1705218643457,-599.04706233,0.00032999,2]
[311549963,1705218643467,-599.04706233,0.00032999,2]
[311549964,1705218643476,-599.04706233,0.00032999,2]
[311549965,1705218643486,-599.04706233,0.00032999,2]
[311549966,1705218643496,-599.04706233,0.00032999,2]
[311549967,1705218643505,-599.04706233,0.00032999,2]
[311549968,1705218643515,-155.9965609,0.00032999,2]
[311549969,1705218643524,-500.0,0.00032999,2]
[311549970,1705218643534,-509.19000298,0.00032999,2]
[311549971,1705218643543,-509.19000298,0.00032999,2]
[311549972,1705218643552,-500.0,0.00032999,2]
[311549973,1705218643563,-509.19000298,0.00032999,2]
[311549974,1705218643572,-509.19000298,0.00032999,2]
[311549975,1705218643582,-509.19000298,0.00032999,2]
[311549976,1705218643591,-500.0,0.00032999,2]
[311549977,1705218643601,-500.0,0.00032999,2]
[311549978,1705218643610,-509.19000298,0.00032999,2]
[311549979,1705218643619,-170.02922669,0.00032999,2]
[311549980,1705218643629,-509.19000298,0.00032999,2]
[311549981,1705218643638,-509.19000298,0.00032999,2]
[311549982,1705218643648,-500.0,0.00032999,2]
[311549983,1705218643657,-1135.43792323,0.00032999,2]
[311549984,1705218643666,-1135.43792323,0.00032999,2]
[311549985,1705218643675,-1135.43792323,0.00032999,2]
[311549986,1705218643685,-1135.43792323,0.00032999,2]
[311549987,1705218643694,-1135.43792323,0.00032999,2]
[311549988,1705218643703,-1135.43792323,0.00032999,2]
[311549989,1705218643713,-1135.43792323,0.00032999,2]
[311549990,1705218643722,-1135.43792323,0.00032999,2]
[311549991,1705218643731,-1135.43792323,0.00032999,2]
[311549992,1705218643740,-1135.43792323,0.00032999,2]
[311549993,1705218643750,-1135.43792323,0.00032999,2]
[311549994,1705218643759,-1135.43792323,0.00032999,2]
[311549995,1705218643768,-1135.43792323,0.00032999,2]
[311549996,1705218643778,-1135.43792323,0.00032999,2]
[311549997,1705218643787,-1135.43792323,0.00032999,2]
[311549998,1705218643797,-1135.43792323,0.00032999,2]
[311549999,1705218643807,-1135.43792323,0.00032999,2]
[311550000,1705218643817,-1135.43792323,0.00032999,2]
[311550001,1705218643835,-1135.43792323,0.00032999,2]
[311550002,1705218643844,-1135.43792323,0.00032999,2]
[311550003,1705218643853,-1135.43792323,0.00032999,2]
[311550004,1705218643863,-989.45304737,0.00032999,2]
[311550005,1705218643873,-989.45304737,0.00032999,2]
[311550006,1705218643882,-989.45304737,0.00032999,2]
[311550007,1705218643891,-989.45304737,0.00032999,2]
[311550008,1705218643900,-989.45304737,0.00032999,2]
[311550009,1705218643909,-989.45304737,0.00032999,2]
[311550010,1705218643918,-989.45304737,0.00032999,2]
[311550011,1705218643927,-165.28655857,0.00032999,2]
[311550012,1705218643936,-100000.0,0.00033,3]
[311550013,1705218643945,-151.0,0.00033,7]
[311550014,1705218643955,-198.43715,0.00033,7]
[311550015,1705218643964,-198.43715,0.00033,7]
[311550016,1705218643973,-151.0,0.00033,7]
[311550017,1705218643982,-152.450988,0.00033,2]
[311550018,1705218643991,-241.86120142,0.00033,5]
[311550019,1705218644001,-1121.0,0.00033,3]
[311550020,1705218644010,-2000.0,0.00033,2]
[311550021,1705218644019,-300.0,0.00033,2]
[311550022,1705218644029,-9418.81442219,0.00033,2]
[311550023,1705218644038,-600.0,0.00033,34]
[311550024,1705218644047,-500.0,0.00033,3]
[311550025,1705218644057,-202.0,0.00033,2]
[311550026,1705218644066,-235.93,0.00033,2]
[311550027,1705218644076,-235.93,0.00033,2]
[311550028,1705218644085,-235.93,0.00033,2]
[311550029,1705218644094,-235.93,0.00033,2]
[311550030,1705218644103,-235.93,0.00033,2]
[311550031,1705218644113,-235.93,0.00033,2]
[311550032,1705218644122,-235.93,0.00033,2]
[311550033,1705218644131,-235.93,0.00033,2]
[311550034,1705218644140,-235.93,0.00033,2]
[311550035,1705218644149,-235.93,0.00033,2]
[311550036,1705218644159,-235.93,0.00033,2]
[311550037,1705218644168,-235.93,0.00033,2]
[311550038,1705218644177,-235.93,0.00033,2]
[311550039,1705218644187,-235.93,0.00033,2]
[311550040,1705218644196,-235.93,0.00033,2]
[311550041,1705218644205,-235.93,0.00033,2]
[311550042,1705218644215,-235.93,0.00033,2]
[311550043,1705218644225,-235.93,0.00033,2]
[311550044,1705218644234,-235.93,0.00033,2]
[311550045,1705218644244,-235.93,0.00033,2]
[311550046,1705218644253,-235.93,0.00033,2]
[311550047,1705218644263,-235.93,0.00033,2]
[311550048,1705218644272,-235.93,0.00033,2]
[311550049,1705218644282,-235.93,0.00033,2]
[311550050,1705218644291,-235.93,0.00033,2]
[311550051,1705218644300,-235.93,0.00033,2]
[311550052,1705218644310,-235.93,0.00033,2]
[311550053,1705218644319,-235.93,0.00033,2]
[311550054,1705218644329,-235.93,0.00033,2]
[311550055,1705218644339,-235.93,0.00033,2]
[311550056,1705218644348,-235.93,0.00033,2]
[311550057,1705218644357,-235.93,0.00033,2]
[311550058,1705218644367,-235.93,0.00033,2]
[311550059,1705218644377,-235.93,0.00033,2]
[311550060,1705218644387,-235.93,0.00033,2]
[311550061,1705218644396,-235.93,0.00033,2]
[311550062,1705218644405,-235.93,0.00033,2]
[311550063,1705218644415,-235.93,0.00033,2]
[311550064,1705218644424,-235.93,0.00033,2]
[311550065,1705218644434,-235.93,0.00033,2]
[311550066,1705218644443,-235.93,0.00033,2]
[311550067,1705218644453,-235.93,0.00033,2]
[311550068,1705218644462,-235.93,0.00033,2]
[311550069,1705218644472,-235.93,0.00033,2]
[311550070,1705218644481,-235.93,0.00033,2]
[311550071,1705218644491,-235.93,0.00033,2]
[311550072,1705218644501,-235.93,0.00033,2]
[311550073,1705218644510,-235.93,0.00033,2]
[311550074,1705218644519,-235.93,0.00033,2]
[311550075,1705218644529,-235.93,0.00033,2]
[311550076,1705218644538,-235.93,0.00033,2]
[311550077,1705218644548,-235.93,0.00033,2]
[311550078,1705218644557,-235.93,0.00033,2]
[311550079,1705218644567,-235.93,0.00033,2]
[311550080,1705218644577,-235.93,0.00033,2]
[311550081,1705218644587,-235.93,0.00033,2]
[311550082,1705218644597,-235.93,0.00033,2]
[311550083,1705218644606,-235.93,0.00033,2]
[311550084,1705218644615,-235.93,0.00033,2]
[311550085,1705218644625,-235.93,0.00033,2]
[311550086,1705218644634,-235.93,0.00033,2]
[311550087,1705218644643,-235.93,0.00033,2]
[311550088,1705218644653,-235.93,0.00033,2]
[311550089,1705218644662,-235.93,0.00033,2]
[311550090,1705218644671,-235.93,0.00033,2]
[311550091,1705218644680,-235.93,0.00033,2]
[311550092,1705218644689,-235.93,0.00033,2]
[311550093,1705218644698,-235.93,0.00033,2]
[311550094,1705218644707,-235.93,0.00033,2]
[311550095,1705218644716,-235.93,0.00033,2]
[311550096,1705218644725,-235.93,0.00033,2]
[311550097,1705218644734,-235.93,0.00033,2]
[311550098,1705218644743,-235.93,0.00033,2]
[311550099,1705218644752,-235.93,0.00033,2]
[311550100,1705218644762,-235.93,0.00033,2]
[311550101,1705218644771,-235.93,0.00033,2]
[311550102,1705218644780,-235.93,0.00033,2]
[311550103,1705218644789,-235.93,0.00033,2]
[311550104,1705218644799,-235.93,0.00033,2]
[311550105,1705218644811,-235.93,0.00033,2]
[311550106,1705218644820,-235.93,0.00033,2]
[311550107,1705218644829,-235.93,0.00033,2]
[311550108,1705218644839,-235.93,0.00033,2]
[311550109,1705218644847,-235.93,0.00033,2]
[311550110,1705218644857,-235.93,0.00033,2]
[311550111,1705218644866,-235.93,0.00033,2]
[311550112,1705218644875,-235.93,0.00033,2]
[311550113,1705218644884,-235.93,0.00033,2]
[311550114,1705218644895,-235.93,0.00033,2]
[311550115,1705218644905,-235.93,0.00033,2]
[311550116,1705218644915,-235.93,0.00033,2]
[311550117,1705218644924,-235.93,0.00033,2]
[311550118,1705218644933,-235.93,0.00033,2]
[311550119,1705218644943,-235.93,0.00033,2]
[311550120,1705218644952,-235.93,0.00033,2]
[311550121,1705218644961,-235.93,0.00033,2]
[311550122,1705218644971,-235.93,0.00033,2]
[311550123,1705218644980,-235.93,0.00033,2]
[311550124,1705218644989,-235.93,0.00033,2]
[311550125,1705218644998,-235.93,0.00033,2]
[311550126,1705218645008,-213.0,0.00033039,17]
[311550127,1705218645017,-1590.331197,0.00033049,2]
[311550128,1705218645027,-891.202238,0.00033049,7]
[311550129,1705218645036,-891.202238,0.00033049,7]
[311550130,1705218645045,-223.082915,0.00033049,7]
[311550131,1705218645054,-246.141517,0.00033095,2]
[311550132,1705218645064,-986.994276,0.00033095,2]
[311550133,1705218645073,-164.094344,0.00033095,2]
[311550134,1705218645082,-657.996185,0.00033095,2]
[311550135,1705218645091,-274.223745,0.00033095,2]
[311550136,1705218645101,-152.359327,0.00033095,2]
[311550137,1705218645110,-2505.9729879,0.00033111,14]
[311550138,1705218645119,-306.24,0.00033137,2]
[311550139,1705218645128,-491.78,0.00033143,2]
[311550140,1705218645137,-210.0,0.0003319,2]
[311550141,1705218645146,-210.0,0.0003319,2]
[311550142,1705218645155,-254.34253846,0.00033208,2]
[311550143,1705218645164,-509.38202,0.0003322,7]
[311550144,1705218645174,-509.38202,0.0003322,7]
[311550145,1705218645183,-151.0,0.0003322,7]
[311550146,1705218645193,-151.0,0.0003322,7]
[311550147,1705218645202,-230.894049,0.0003322,7]
[311550148,1705218645215,-230.894049,0.0003322,7]
[311550150,1705218645225,-1590.331197,0.0003322,2]
[311550152,1705218645234,-506.719399,0.0003327,2]
[311550154,1705218645243,-171.389841,0.00033279,2]
[311550155,1705218645252,-182.980512,0.00033279,2]
[311550156,1705218645261,-1918.231405,0.00033279,2]
[311550157,1705218645271,-625.474192,0.00033279,2]
[311550159,1705218645280,-1889.880451,0.00033279,2]
[311550160,1705218645290,-182.980509,0.00033279,2]
[311550161,1705218645298,-196.269598,0.00033279,2]
[311550162,1705218645309,-622.701028,0.00033279,2]
[311550163,1705218645318,-663.658665,0.00033279,2]
[311550164,1705218645327,-164.56164,0.00033279,2]
[311550165,1705218645336,-179.46707,0.00033279,2]
[311550166,1705218645345,-150.0,0.00033299,2]
[311550167,1705218645354,-150.0,0.00033299,2]
[311550168,1705218645364,-20000.000001,0.000333,3]
[311550169,1705218645373,-151.0,0.00033302,30]
[311550170,1705218645385,-150.34,0.00033321,2]
[311550171,1705218645394,-450.0,0.00033327,3]
[311550172,1705218645403,-1590.331197,0.00033392,2]
[311550173,1705218645412,-726.90169375,0.000335,2]
[311550174,1705218645422,-5000.0,0.000335,15]
[311550175,1705218645431,-161.608457,0.000335,7]
[311550176,1705218645440,-161.608457,0.000335,7]
[311550177,1705218645449,-6909.67,0.000335,2]
[311550178,1705218645459,-6909.67,0.000335,2]
[311550179,1705218645468,-6909.67,0.000335,2]
[311550180,1705218645477,-6909.67,0.000335,2]
[311550181,1705218645486,-6909.67,0.000335,2]
[311550182,1705218645495,-6909.67,0.000335,2]
[311550183,1705218645505,-6909.67,0.000335,2]
[311550184,1705218645514,-6909.67,0.000335,2]
[311550185,1705218645524,-6909.67,0.000335,2]
[311550186,1705218645534,-6909.67,0.000335,2]
[311550187,1705218645543,-6909.67,0.000335,2]
[311550188,1705218645552,-6909.67,0.000335,2]
[311550189,1705218645563,-6909.67,0.000335,2]
[311550190,1705218645572,-6909.67,0.000335,2]
[311550191,1705218645582,-6909.67,0.000335,2]
[311550192,1705218645591,-6909.67,0.000335,2]
[311550193,1705218645600,-6909.67,0.000335,2]
[311550194,1705218645657,-6909.67,0.000335,2]
[311550195,1705218645666,-6909.67,0.000335,2]
[311550196,1705218645675,-6909.67,0.000335,2]
[311550197,1705218645684,-246.141517,0.00033503,2]
[311550198,1705218645693,-986.994276,0.00033503,2]
[311550199,1705218645702,-164.094344,0.00033503,2]
[311550200,1705218645711,-657.996185,0.00033503,2]
[311550201,1705218645720,-274.223745,0.00033503,2]
[311550202,1705218645729,-152.359327,0.00033503,2]
[311550203,1705218645738,-172.498788,0.00033503,2]
[311550204,1705218645747,-1756.50552638,0.00033537,5]
[311550205,1705218645756,-151.0,0.00033545,2]
[311550206,1705218645766,-1590.331197,0.00033564,2]
[311550207,1705218645775,-605.0,0.00033668,3]
[311550208,1705218645783,-605.0,0.00033668,3]
[311550209,1705218645792,-605.0,0.00033668,3]
[311550210,1705218645801,-1918.231405,0.00033695,2]
[311550211,1705218645810,-625.474192,0.00033695,2]
[311550212,1705218645819,-1889.880451,0.00033695,2]
[311550213,1705218645828,-622.701028,0.00033695,2]
[311550214,1705218645837,-663.658665,0.00033695,2]
[311550215,1705218645846,-164.56164,0.00033695,2]
[311550216,1705218645855,-254.34253846,0.00033699,2]
[311550217,1705218645864,-1590.331197,0.00033736,2]
[311550218,1705218645873,-150.0,0.00033742,2]
[311550219,1705218645882,-1000.0,0.0003375,2]
[311550220,1705218645892,-153.84,0.0003379,2]
[311550221,1705218645901,-768.141413,0.000338,2]
[311550222,1705218645910,-450.0,0.00033878,3]
[311550223,1705218645919,-1590.331197,0.00033908,2]
[311550224,1705218645929,-246.141517,0.00033912,2]
[311550225,1705218645937,-986.994276,0.00033912,2]
[311550226,1705218645946,-164.094344,0.00033912,2]
[311550227,1705218645956,-657.996185,0.00033912,2]
[311550228,1705218645966,-274.223745,0.00033912,2]
[311550229,1705218645974,-152.359327,0.00033912,2]
[311550230,1705218645983,-2001.535284,0.00033976,2]
[311550231,1705218645992,-738.1175986,0.00033976,2]
[311550232,1705218646002,-17700.7926225,0.00033976,2]
[311550233,1705218646011,-826.7945766,0.00033977,2]
[311550234,1705218646020,-151.0,0.00033981,7]
[311550235,1705218646030,-4166.69522976,0.00033997,2]
[311550236,1705218646039,-100000.0,0.00034,4]
[311550237,1705218646048,-802.6619565,0.00034,4]
[311550238,1705218646057,-1000.0,0.00034,4]
[311550239,1705218646066,-155.0,0.00034,2]
[311550240,1705218646076,-1000.0,0.00034,4]
[311550241,1705218646085,-16000.0,0.00034,3]
[311550242,1705218646094,-11742.1943986,0.00034,2]
[311550243,1705218646103,-131646.68435403,0.00034,2]
[311550244,1705218646113,-2000.0,0.00034,2]
[311550245,1705218646121,-600.0,0.00034,35]
[311550246,1705218646131,-29715.70080861,0.00034,7]
[311550247,1705218646140,-3000.0,0.00034,14]
[311550248,1705218646149,-33073.29304241,0.00034,2]
[311550249,1705218646162,-214.007033,0.00034,7]
[311550250,1705218646196,-214.007033,0.00034,7]
[311550251,1705218646206,-267.595365,0.00034,7]
[311550252,1705218646216,-500.0,0.00034,3]
[311550253,1705218646226,-151.0,0.00034,7]
[311550254,1705218646236,-151.0,0.00034,7]
[311550255,1705218646245,-1590.331197,0.00034079,2]
[311550256,1705218646255,-500.0,0.000341,7]
[311550257,1705218646265,-1918.231405,0.00034111,2]
[311550258,1705218646275,-625.474192,0.00034111,2]
[311550259,1705218646285,-1889.880451,0.00034111,2]
[311550260,1705218646296,-622.701028,0.00034111,2]
[311550261,1705218646306,-663.658665,0.00034111,2]
[311550262,1705218646315,-164.56164,0.00034111,2]
[311550263,1705218646325,-179.46707,0.00034111,2]
[311550264,1705218646336,-210.0,0.0003418,2]
[311550265,1705218646347,-210.0,0.0003418,2]
[311550266,1705218646355,-254.34253846,0.0003419,2]
[311550267,1705218646364,-2705.5,0.000342,10]
[311550268,1705218646374,-8000.0,0.000342,2]
[311550269,1705218646383,-155.0,0.00034247,2]
[311550270,1705218646393,-1590.331197,0.00034251,2]
[311550271,1705218646402,-197.616337,0.00034321,2]
[311550272,1705218646411,-246.141517,0.00034321,2]
[311550273,1705218646421,-986.994276,0.00034321,2]
[311550274,1705218646432,-164.094344,0.00034321,2]
[311550275,1705218646442,-657.996185,0.00034321,2]
[311550276,1705218646452,-274.223745,0.00034321,2]
[311550277,1705218646462,-152.359327,0.00034321,2]
[311550278,1705218646472,-172.498788,0.00034321,2]
[311550279,1705218646482,-1590.331197,0.00034423,2]
[311550280,1705218646492,-450.0,0.00034429,3]
[311550281,1705218646502,-156.2,0.0003449,2]
[311550282,1705218646513,-6740.953403,0.0003452,2]
[311550283,1705218646523,-51615.06597,0.0003452,2]
[311550284,1705218646533,-891.202238,0.0003452,7]
[311550285,1705218646543,-891.202238,0.0003452,7]
[311550286,1705218646553,-509.38202,0.0003452,7]
[311550287,1705218646564,-509.38202,0.0003452,7]
[311550288,1705218646574,-151.0,0.00034521,7]
[311550289,1705218646584,-190.894578,0.00034521,7]
[311550290,1705218646595,-230.894049,0.00034521,7]
[311550291,1705218646605,-230.894049,0.00034521,7]
[311550292,1705218646616,-10000.0,0.00034521,2]
[311550293,1705218646625,-1918.231405,0.00034527,2]
[311550294,1705218646636,-625.474192,0.00034527,2]
[311550295,1705218646646,-1889.880451,0.00034527,2]
[311550296,1705218646655,-622.701028,0.00034527,2]
[311550297,1705218646665,-663.658665,0.00034527,2]
[311550298,1705218646674,-164.56164,0.00034527,2]
[311550299,1705218646684,-161.72835411,0.00034551,2]
[311550300,1705218646694,-150.34,0.00034566,2]
[311550301,1705218646705,-1590.331197,0.00034595,2]
[311550302,1705218646715,-191.471077,0.00034595,7]
[311550303,1705218646726,-198.43715,0.00034595,7]
[311550304,1705218646736,-198.43715,0.00034595,7]